fUST/lending_fUST_20251124
["ID","MTS","AMOUNT","RATE_DAILY","PERIOD"]
[394789838,1763951441137,-500.0,0.00010959,2]
[394789840,1763951441147,-500.0,0.00010959,2]
[394789842,1763951441156,-500.0,0.00010959,2]
[394789844,1763951441165,-500.0,0.00010959,2]
[394789846,1763951441175,-500.0,0.00010959,2]
[394789848,1763951441184,-500.0,0.00010959,2]
[394789850,1763951441193,-500.0,0.00010959,2]
[394789852,1763951441203,-500.0,0.00010959,2]
[394789854,1763951441212,-500.0,0.00010959,2]
[394789856,1763951441221,-500.0,0.00010959,2]
[394789858,1763951441231,-500.0,0.00010959,2]
[394789860,1763951441240,-500.0,0.00010959,2]
[394789862,1763951441249,-500.0,0.00010959,2]
[394789864,1763951441258,-500.0,0.00010959,2]
[394789866,1763951441267,-500.0,0.00010959,2]
[394789868,1763951441276,-500.0,0.00010959,2]
[394789870,1763951441285,-500.0,0.00010959,2]
[394789872,1763951441295,-500.0,0.00010959,2]
[394789874,1763951441304,-596.78425295,0.00010959,2]
[394789876,1763951441314,-500.0,0.00010959,2]
[394789878,1763951441324,-500.0,0.00010959,2]
[394789880,1763951441333,-500.0,0.00010959,2]
[394789882,1763951441343,-500.0,0.00010959,2]
[394789884,1763951441353,-500.0,0.00010959,2]
[394789886,1763951441363,-500.0,0.00010959,2]
[394789888,1763951441373,-500.0,0.00010959,2]
[394789890,1763951441383,-500.0,0.00010959,2]
[394789893,1763951441394,-500.0,0.00010959,2]
[394789895,1763951441403,-500.0,0.00010959,2]
[394789897,1763951441413,-1234.69673602,0.00010959,2]
[394789898,1763951441422,-1234.69673602,0.00010959,2]
[394789900,1763951441432,-1234.69673602,0.00010959,2]
[394789902,1763951441442,-1234.69673602,0.00010959,2]
[394789904,1763951441452,-1234.69673602,0.00010959,2]
[394789906,1763951441462,-1234.69673602,0.00010959,2]
[394789908,1763951441471,-1234.69673602,0.00010959,2]
[394789910,1763951441481,-1234.69673602,0.00010959,2]
[394789912,1763951441490,-1234.69673602,0.00010959,2]
[394789914,1763951441499,-1234.69673602,0.00010959,2]
[394789916,1763951441508,-1234.69673602,0.00010959,2]
[394789918,1763951441518,-1234.69673602,0.00010959,2]
[394789920,1763951441530,-1234.69673602,0.00010959,2]
[394789922,1763951441541,-1234.69673602,0.00010959,2]
[394789924,1763951441551,-1234.69673602,0.00010959,2]
[394789926,1763951441561,-1234.69673602,0.00010959,2]
[394789928,1763951441570,-1234.69673602,0.00010959,2]
[394789930,1763951441580,-1234.69673602,0.00010959,2]
[394789932,1763951441589,-1234.69673602,0.00010959,2]
[394789934,1763951441598,-1234.69673602,0.00010959,2]
[394789935,1763951441607,-1234.69673602,0.00010959,2]
[394789937,1763951441617,-1234.69673602,0.00010959,2]
[394789939,1763951441626,-1234.69673602,0.00010959,2]
[394789941,1763951441636,-1234.69673602,0.00010959,2]
[394789942,1763951441645,-1234.69673602,0.00010959,2]
[394789944,1763951441655,-1234.69673602,0.00010959,2]
[394789946,1763951441664,-1234.69673602,0.00010959,2]
[394789948,1763951441674,-1234.69673602,0.00010959,2]
[394789950,1763951441684,-1234.69673602,0.00010959,2]
[394789952,1763951441694,-1234.69673602,0.00010959,2]
[394789954,1763951441704,-1234.69673602,0.00010959,2]
[394789957,1763951441714,-1234.69673602,0.00010959,2]
[394789959,1763951441724,-1234.69673602,0.00010959,2]
[394789961,1763951441734,-1234.69673602,0.00010959,2]
[394789963,1763951441744,-1234.69673602,0.00010959,2]
[394789965,1763951441754,-1234.69673602,0.00010959,2]
[394789967,1763951441763,-1234.69673602,0.00010959,2]
[394789969,1763951441773,-1234.69673602,0.00010959,2]
[394789971,1763951441785,-1234.69673602,0.00010959,2]
[394789972,1763951441797,-1234.69673602,0.00010959,2]
[394789974,1763951441806,-1234.69673602,0.00010959,2]
[394789976,1763951441816,-1234.69673602,0.00010959,2]
[394789979,1763951441826,-1234.69673602,0.00010959,2]
[394789981,1763951441836,-1234.69673602,0.00010959,2]
[394789983,1763951441845,-1234.69673602,0.00010959,2]
[394789985,1763951441855,-1234.69673602,0.00010959,2]
[394789987,1763951441866,-1234.69673602,0.00010959,2]
[394789989,1763951441875,-1234.69673602,0.00010959,2]
[394789990,1763951441884,-1230.58108023,0.00010959,2]
[394789992,1763951441894,-1230.58108023,0.00010959,2]
[394789994,1763951441903,-1230.58108023,0.00010959,2]
[394789996,1763951441912,-1230.58108023,0.00010959,2]
[394789998,1763951441922,-1230.58108023,0.00010959,2]
[394790000,1763951441931,-1230.58108023,0.00010959,2]
[394790002,1763951441940,-1230.58108023,0.00010959,2]
[394790004,1763951441949,-1230.58108023,0.00010959,2]
[394790006,1763951441959,-1230.58108023,0.00010959,2]
[394790008,1763951441968,-1230.58108021,0.00010959,2]
[394790010,1763951441977,-500.0,0.00010959,2]
[394790012,1763951441986,-500.0,0.00010959,2]
[394790014,1763951441995,-535.630391,0.00010959,2]
[394790016,1763951442006,-500.0,0.00010959,2]
[394790018,1763951442015,-707.493692,0.00010959,2]
[394790020,1763951442024,-707.493692,0.00010959,2]
[394790022,1763951442034,-707.493692,0.00010959,2]
[394790024,1763951442044,-707.493692,0.00010959,2]
[394790026,1763951442053,-707.493692,0.00010959,2]
[394790028,1763951442062,-449.74562085,0.00010973,2]
[394790030,1763951442071,-500.0,0.00010973,2]
[394790032,1763951442081,-500.0,0.00010973,2]
[394790034,1763951442090,-151.0,0.00011,2]
[394790036,1763951442099,-261.45075877,0.00011001,2]
[394790038,1763951442108,-275.054041,0.00011108,2]
[394790040,1763951442119,-2638.4654312,0.000112,2]
[394790043,1763951442130,-282.8835242,0.000115,2]
[394790044,1763951442139,-1000.0,0.00011521,2]
[394790046,1763951442148,-1000.0,0.00011521,2]
[394790048,1763951442157,-707.493692,0.00011521,2]
[394790050,1763951442166,-707.493692,0.00011521,2]
[394790052,1763951442176,-587.0,0.00011608,2]
[394790054,1763951442185,-1500.0,0.00012068,2]
[394790057,1763951442195,-1500.0,0.00012068,2]
[394790058,1763951442205,-500.0,0.00012238,2]
[394790061,1763951442214,-500.0,0.00012238,3]
[394790062,1763951442224,-500.0,0.00012238,4]
[394790065,1763951442234,-500.0,0.00012238,5]
[394790067,1763951442243,-500.0,0.00012238,6]
[394790069,1763951442253,-500.0,0.00012238,7]
[394790071,1763951442262,-621.19406293,0.00012241,8]
[394790073,1763951442273,-500.0,0.00012243,2]
[394790075,1763951442283,-296.9691802,0.000123,2]
[394790077,1763951442292,-266.46,0.00012329,2]
[394790079,1763951442301,-222.05,0.00012329,2]
[394790081,1763951442311,-222.05,0.00012329,2]
[394790083,1763951442320,-888.24,0.00012329,2]
[394790085,1763951442329,-151.0,0.000124,2]
[394790087,1763951442338,-1829.49786814,0.000125,2]
[394790089,1763951442347,-2144.12775931,0.00012616,2]
[394790090,1763951442358,-1152.97994069,0.00012616,2]
[394790092,1763951442367,-823.0,0.00012769,2]
[394790094,1763951442376,-204.0,0.00012866,2]
[394790096,1763951442386,-7629.02121168,0.000129,2]
[394790098,1763951442395,-1000.0,0.00013059,2]
[394790100,1763951442405,-1000.0,0.00013059,2]
[394790102,1763951442414,-1000.0,0.00013059,2]
[394790104,1763951442424,-1000.0,0.00013059,2]
[394790106,1763951442433,-1000.0,0.00013059,2]
[394790108,1763951442443,-1005.14270114,0.00013059,2]
[394790110,1763951442452,-250.0,0.00013059,2]
[394790112,1763951442461,-500.0,0.00013059,2]
[394790114,1763951442469,-250.0,0.00013059,2]
[394790116,1763951442479,-250.0,0.00013059,2]
[394790118,1763951442488,-250.0,0.00013059,2]
[394790120,1763951442498,-250.0,0.00013059,2]
[394790122,1763951442507,-250.0,0.00013059,2]
[394790124,1763951442516,-250.0,0.00013059,2]
[394790125,1763951442525,-250.0,0.00013059,2]
[394790127,1763951442536,-250.0,0.00013059,2]
[394790129,1763951442545,-378.84303548,0.00013059,2]
[394790131,1763951442554,-518.5,0.00013114,2]
[394790133,1763951442562,-537.6845,0.00013169,2]
[394790135,1763951442571,-557.5788265,0.00013224,2]
[394790137,1763951442580,-578.20924308,0.00013279,2]
[394790139,1763951442589,-599.60298507,0.00013334,2]
[394790141,1763951442598,-576.39635219,0.00013339,2]
[394790142,1763951442607,-621.78829552,0.00013389,2]
[394790144,1763951442616,-644.79446246,0.00013444,2]
[394790146,1763951442625,-668.65185757,0.00013499,2]
[394790148,1763951442634,-693.5651117,0.00013528,2]
[394790150,1763951442643,-693.3919763,0.00013554,2]
[394790152,1763951442652,-719.04747942,0.00013609,2]
[394790154,1763951442662,-745.65223616,0.00013664,2]
[394790156,1763951442671,-528.25672248,0.00013698,2]
[394790158,1763951442680,-776.323872,0.00013699,2]
[394790160,1763951442689,-1221.422226,0.00013699,2]
[394790162,1763951442698,-151.0,0.00013699,2]
[394790164,1763951442709,-151.0,0.00013699,2]
[394790166,1763951442718,-151.0,0.00013699,2]
[394790168,1763951442727,-151.0,0.00013699,2]
[394790170,1763951442737,-151.0,0.00013699,2]
[394790172,1763951442746,-232.97117,0.00013699,2]
[394790174,1763951442755,-151.0,0.00013699,2]
[394790176,1763951442764,-151.0,0.00013699,2]
[394790178,1763951442774,-151.0,0.00013699,2]
[394790180,1763951442788,-154.225044,0.00013699,2]
[394790182,1763951442798,-151.0,0.00013699,2]
[394790184,1763951442807,-151.0,0.00013699,2]
[394790186,1763951442816,-215.656666,0.00013699,2]
[394790188,1763951442826,-1000.0,0.00013699,2]
[394790190,1763951442836,-151.0,0.00013699,2]
[394790192,1763951442846,-151.0,0.00013699,2]
[394790194,1763951442857,-151.0,0.00013699,2]
[394790196,1763951442866,-151.0,0.00013699,2]
[394790198,1763951442876,-151.0,0.00013699,2]
[394790200,1763951442886,-151.0,0.00013699,2]
[394790202,1763951442895,-151.0,0.00013699,2]
[394790204,1763951442905,-151.0,0.00013699,2]
[394790206,1763951442914,-151.0,0.00013699,2]
[394790208,1763951442923,-170.482322,0.00013699,2]
[394790210,1763951442933,-169.451665,0.00013699,2]
[394790212,1763951442941,-169.451665,0.00013699,2]
[394790213,1763951442950,-169.451665,0.00013699,2]
[394790214,1763951442960,-169.451665,0.00013699,2]
[394790216,1763951442969,-169.451665,0.00013699,2]
[394790218,1763951442978,-169.451665,0.00013699,2]
[394790220,1763951442988,-169.451665,0.00013699,2]
[394790222,1763951442996,-169.451665,0.00013699,2]
[394790224,1763951443007,-169.451665,0.00013699,2]
[394790226,1763951443016,-169.451665,0.00013699,2]
[394790229,1763951443026,-169.451665,0.00013699,2]
[394790232,1763951443038,-169.451665,0.00013699,2]
[394790235,1763951443047,-169.451665,0.00013699,2]
[394790238,1763951443057,-169.451665,0.00013699,2]
[394790241,1763951443067,-169.451665,0.00013699,2]
[394790243,1763951443076,-169.451665,0.00013699,2]
[394790245,1763951443085,-169.451665,0.00013699,2]
[394790247,1763951443094,-169.451665,0.00013699,2]
[394790249,1763951443103,-169.451665,0.00013699,2]
[394790251,1763951443112,-169.451658,0.00013699,2]
[394790253,1763951443122,-151.0,0.00013699,2]
[394790255,1763951443131,-151.0,0.00013699,2]
[394790257,1763951443141,-151.0,0.00013699,2]
[394790259,1763951443151,-151.0,0.00013699,2]
[394790261,1763951443160,-151.0,0.00013699,2]
[394790263,1763951443169,-151.0,0.00013699,2]
[394790265,1763951443178,-151.0,0.00013699,2]
[394790267,1763951443188,-151.0,0.00013699,2]
[394790269,1763951443197,-151.0,0.00013699,2]
[394790271,1763951443207,-151.0,0.00013699,2]
[394790273,1763951443216,-296.541,0.00013699,2]
[394790275,1763951443226,-773.2413689,0.00013719,2]
[394790277,1763951443235,-357.6308126,0.00013774,2]
[394790279,1763951443245,-151.0,0.000138,2]
[394790281,1763951443254,-160.0,0.00013857,2]
[394790283,1763951443264,-297.26614938,0.00013879,2]
[394790285,1763951443273,-212.329,0.00013963,2]
[394790287,1763951443283,-161.0,0.00014,2]
[394790289,1763951443292,-160.0,0.00014,2]
[394790291,1763951443302,-160.0,0.00014,2]
[394790293,1763951443312,-1133.0,0.00014046,2]
[394790295,1763951443321,-353.36441271,0.00014324,2]
[394790297,1763951443331,-7629.02121168,0.00014336,2]
[394790299,1763951443342,-260.0,0.00014404,2]
[394790301,1763951443351,-3401.4440437,0.00014521,2]
[394790303,1763951443360,-160.0,0.00014732,2]
[394790304,1763951443369,-1000.0,0.000148,3]
[394790306,1763951443378,-231.0,0.00014866,2]
[394790308,1763951443387,-360.0,0.00014952,2]
[394790310,1763951443398,-180.89798547,0.00015068,2]
[394790313,1763951443408,-178.032587,0.00015068,2]
[394790314,1763951443417,-801.10319091,0.00015068,2]
[394790317,1763951443427,-151.0,0.000152,2]
[394790319,1763951443437,-460.0,0.000155,2]
[394790320,1763951443446,-1000.0,0.000158,4]
[394790322,1763951443455,-560.0,0.00016048,2]
[394790324,1763951443464,-500.0,0.00016438,2]
[394790326,1763951443474,-500.0,0.00016438,2]
[394790328,1763951443483,-500.0,0.00016438,2]
[394790330,1763951443493,-500.0,0.00016438,2]
[394790332,1763951443502,-500.0,0.00016438,2]
[394790334,1763951443511,-500.0,0.00016438,2]
[394790336,1763951443521,-500.0,0.00016438,2]
[394790338,1763951443531,-500.0,0.00016438,2]
[394790340,1763951443540,-500.0,0.00016438,2]
[394790342,1763951443549,-500.0,0.00016438,2]
[394790344,1763951443558,-500.0,0.00016438,2]
[394790346,1763951443568,-500.0,0.00016438,2]
[394790365,1763951443736,-500.0,0.00016438,2]
[394790368,1763951443748,-500.0,0.00016438,2]
[394790370,1763951443758,-500.0,0.00016438,2]
[394790372,1763951443768,-500.0,0.00016438,2]
[394790374,1763951443778,-500.0,0.00016438,2]
[394790376,1763951443792,-500.0,0.00016438,2]
[394790378,1763951443802,-500.0,0.00016438,2]
[394790380,1763951443811,-330.71736148,0.00016438,2]
[394790382,1763951443820,-151.0,0.00016438,2]
[394790384,1763951443831,-151.0,0.00016438,2]
[394790386,1763951443840,-239.784891,0.00016438,2]
[394790388,1763951443850,-152.860935,0.00016438,2]
[394790390,1763951443860,-660.0,0.00016596,2]
[394790392,1763951443872,-151.0,0.000166,2]
[394790394,1763951443881,-2011.277237,0.00016611,5]
[394790396,1763951443890,-573.21058943,0.00016666,2]
[394790398,1763951443900,-1031.77906098,0.00016666,2]
[394790400,1763951443911,-499.46048372,0.00016666,2]
[394790547,1763951445689,-707.493692,9.595e-05,2]
[394790549,1763951445699,-707.493692,0.0001058,2]
[394790551,1763951445708,-707.493692,0.00010959,2]
[394790553,1763951445718,-707.493692,0.00010959,2]
[394790555,1763951445727,-707.493692,0.00010959,2]
[394790557,1763951445736,-707.493692,0.00011521,2]
[394790559,1763951445745,-707.493686,0.00011521,2]
[394790561,1763951445754,-288.18412718,0.0001179,2]
[394790563,1763951445763,-288.4723113,0.00013249,2]
[394790565,1763951445772,-1334.81340246,0.00016666,2]
[394790566,1763951445783,-600.0,0.00016766,2]
[394790569,1763951445797,-300.0,0.00016766,2]
[394790571,1763951445807,-678.19479957,0.00016817,5]
[394790573,1763951445816,-502.81930925,0.00016817,5]
[394790575,1763951445827,-166.39464828,0.00016839,2]
[394790577,1763951445837,-665.57859311,0.00016839,2]
[394790578,1763951445846,-1497.55183451,0.00016839,2]
[394790581,1763951445856,-2662.31437246,0.00016839,2]
[394790583,1763951445865,-4159.86620696,0.00016839,2]
[394790584,1763951445875,-5990.20733803,0.00016839,2]
[394790586,1763951445884,-632.28527474,0.0001686,2]
[394790588,1763951445893,-258.0,0.00016866,2]
[394790590,1763951445902,-156.20085679,0.00016898,2]
[394790592,1763951445911,-624.80342715,0.00016898,2]
[394790594,1763951445920,-1405.80771108,0.00016898,2]
[394790596,1763951445929,-600.424625,0.00016898,2]
[394790598,1763951445938,-1080.76432499,0.00016898,2]
[394790600,1763951445948,-161.0,0.000169,2]
[394790602,1763951445957,-161.0,0.000169,2]
[394790604,1763951445967,-161.0,0.000169,2]
[394790606,1763951445977,-162.42338593,0.000169,2]
[394790608,1763951445987,-205.81759953,0.00016917,2]
[394790610,1763951445995,-158.22954823,0.00016917,2]
[394790612,1763951446005,-406.0676979,0.00017039,2]
[394790615,1763951446014,-323.69539168,0.0001705,2]
[394790617,1763951446023,-1293.48678515,0.0001705,2]
[394790619,1763951446031,-760.0,0.00017144,2]
[394790621,1763951446041,-270.25300884,0.00017183,2]
[394790624,1763951446061,-308.86058154,0.00017183,2]
[394790626,1763951446072,-663.09009104,0.00017183,2]
[394790628,1763951446082,-274.47749964,0.00017183,2]
[394790698,1763952346117,-275.99815774,9.034e-05,2]
[394790699,1763952427267,-150.0,8.899e-05,2]
[394790700,1763952427288,-150.0,8.989e-05,2]
[394790701,1763952427309,-150.0,9.08e-05,2]
[394790702,1763952427329,-287.11380837,0.00010061,2]
[394790703,1763952427347,-163.18138905,0.00010573,2]
[394790704,1763952442085,-22.37855678,0.00010573,2]
[394790705,1763952442106,-300.0,0.00010606,2]
[394790706,1763952442128,-201.932861,0.00010606,2]
[394790707,1763952442151,-558.25935375,0.00010607,2]
[394790742,1763952632201,-641.74064625,0.00010501,2]
[394790743,1763952632211,-164.0,0.00010605,2]
[394790744,1763952632222,-211.66576192,0.00010605,2]
[394790745,1763952632234,-362.82335473,0.00010605,2]
[394791561,1763952645908,-290.77509509,0.00010499,2]
[394791563,1763952645918,-410.78490491,0.00010605,2]
[394791574,1763952646014,-214.72597844,0.00010605,2]
[394791576,1763952646025,-150.0,0.00010605,2]
[394791578,1763952646037,-500.0,0.00010605,2]
[394791580,1763952646054,-500.0,0.00010605,2]
[394791582,1763952646064,-599.4135364,0.00010605,2]
[394791584,1763952646074,-500.0,0.00010605,2]
[394791586,1763952646083,-500.0,0.00010605,2]
[394791588,1763952646095,-500.0,0.00010605,2]
[394791590,1763952646106,-500.0,0.00010605,2]
[394791592,1763952646117,-500.0,0.00010605,2]
[394791594,1763952646126,-500.0,0.00010605,2]
[394791596,1763952646135,-500.0,0.00010605,2]
[394791598,1763952646144,-500.0,0.00010605,2]
[394791600,1763952646154,-500.0,0.00010605,2]
[394791602,1763952646164,-500.0,0.00010605,2]
[394791604,1763952646176,-500.0,0.00010605,2]
[394791606,1763952646186,-500.0,0.00010605,2]
[394791608,1763952646195,-500.0,0.00010605,2]
[394791610,1763952646204,-500.0,0.00010605,2]
[394791612,1763952646214,-500.0,0.00010605,2]
[394791614,1763952646223,-500.0,0.00010605,2]
[394791617,1763952646243,-500.0,0.00010605,2]
[394791619,1763952646255,-500.0,0.00010605,2]
[394791621,1763952646264,-500.0,0.00010605,2]
[394791624,1763952646274,-255.63444102,0.00010605,2]
[394791626,1763952646285,-500.0,0.00010605,2]
[394791628,1763952646294,-500.0,0.00010605,2]
[394791630,1763952646304,-500.0,0.00010605,2]
[394791632,1763952646313,-500.0,0.00010605,2]
[394791634,1763952646322,-500.0,0.00010605,2]
[394791636,1763952646332,-500.0,0.00010605,2]
[394791638,1763952646341,-500.0,0.00010605,2]
[394791640,1763952646351,-500.0,0.00010605,2]
[394791642,1763952646360,-500.0,0.00010605,2]
[394791644,1763952646370,-500.0,0.00010605,2]
[394791646,1763952646379,-500.0,0.00010605,2]
[394791648,1763952646389,-500.0,0.00010605,2]
[394791650,1763952646398,-500.0,0.00010605,2]
[394791652,1763952646407,-500.0,0.00010605,2]
[394791654,1763952646417,-500.0,0.00010605,2]
[394791656,1763952646427,-500.0,0.00010605,2]
[394791658,1763952646436,-500.0,0.00010605,2]
[394791660,1763952646446,-500.0,0.00010605,2]
[394791662,1763952646455,-500.0,0.00010605,2]
[394791664,1763952646465,-500.0,0.00010606,2]
[394791667,1763952646475,-153.48578466,0.00010606,2]
[394791669,1763952646484,-531.58317303,0.00010606,2]
[394791671,1763952646494,-10194.3833186,0.00010607,2]
[394792682,1763953540121,-206.66940075,9.494e-05,2]
[394792683,1763953540140,-20.47183882,9.59e-05,2]
[394792685,1763953627117,-206.66940075,9.305e-05,2]
[394792686,1763953627138,-206.66940075,9.399e-05,2]
[394792687,1763953627158,-150.0,9.495e-05,2]
[394792688,1763953627179,-132.79200767,9.59e-05,2]
[394792689,1763953636280,-53.40555426,9.59e-05,2]
[394792690,1763953636304,-206.66940075,9.687e-05,2]
[394792691,1763953636327,-191.53676919,0.00010061,2]
[394792692,1763953636346,-163.74330405,0.00010501,2]
[394792693,1763953636366,-173.21621848,0.00010605,2]
[394793155,1763953840108,-359.50100004,0.0001029,2]
[394793375,1763954515439,854.1,0.0002,30]
[394793377,1763954758176,952.0298182,7.999e-05,2]
[394793379,1763954799137,-168.19308826,8.646e-05,2]
[394793389,1763954960139,-695.66210309,8.56e-05,2]
[394793390,1763954960161,-150.0,8.603e-05,2]
[394793391,1763954960184,-527.46901483,8.646e-05,2]
[394793392,1763954960202,-149.09627066,8.733e-05,2]
[394793393,1763954967078,-405.72,8.733e-05,2]
[394793394,1763954972137,-315.98850797,8.646e-05,2]
[394793423,1763955032096,-230.57732446,8.56e-05,2]
[394793424,1763955032106,-230.57732446,8.646e-05,2]
[394793425,1763955032116,-500.0,8.973e-05,2]
[394793426,1763955032125,-500.0,8.973e-05,2]
[394793427,1763955032134,-113.38274712,8.973e-05,2]
[394793428,1763955032146,-386.61725288,8.973e-05,2]
[394793429,1763955032157,-500.0,8.973e-05,2]
[394793430,1763955032167,-1200.0,8.997e-05,2]
[394793431,1763955032177,-300.0,8.997e-05,2]
[394793432,1763955032186,-1200.0,8.997e-05,2]
[394793433,1763955032195,-300.0,8.997e-05,2]
[394793434,1763955032205,-173.91787094,8.998e-05,2]
[394793435,1763955032214,-500.0,8.998e-05,2]
[394793436,1763955032223,-500.0,8.998e-05,2]
[394793437,1763955032232,-500.0,8.998e-05,2]
[394793438,1763955032241,-500.0,8.998e-05,2]
[394793439,1763955032250,-500.0,8.998e-05,2]
[394793440,1763955032259,-305.95057203,8.998e-05,2]
[394793441,1763955032267,-500.0,8.998e-05,2]
[394793442,1763955032277,-500.0,8.998e-05,2]
[394793443,1763955032287,-500.0,8.998e-05,2]
[394793444,1763955032297,-38151.74473118,8.998e-05,2]
[394793452,1763955038023,-451.8389299,8.908e-05,2]
[394793454,1763955038032,-345.46654314,8.998e-05,2]
[394793456,1763955038130,-2960.73088,8.998e-05,2]
[394793459,1763955038141,-1074.99956033,8.998e-05,2]
[394793461,1763955038152,-24110.13166112,8.998e-05,2]
[394793463,1763955038161,-500.0,8.998e-05,2]
[394793464,1763955038172,-500.0,8.998e-05,2]
[394793465,1763955038181,-500.0,8.998e-05,2]
[394793466,1763955038190,-500.0,8.998e-05,2]
[394793467,1763955038199,-500.0,8.998e-05,2]
[394793468,1763955038211,-500.0,8.998e-05,2]
[394793469,1763955038220,-500.0,8.998e-05,2]
[394793470,1763955038229,-500.0,8.998e-05,2]
[394793471,1763955038239,-500.0,8.998e-05,2]
[394793472,1763955038248,-500.0,8.998e-05,2]
[394793473,1763955038258,-500.0,8.998e-05,2]
[394793474,1763955038267,-500.0,8.998e-05,2]
[394793475,1763955038276,-500.0,8.998e-05,2]
[394793476,1763955038286,-500.0,8.998e-05,2]
[394793477,1763955038295,-500.0,8.998e-05,2]
[394793478,1763955038304,-500.0,8.998e-05,2]
[394793479,1763955038313,-500.0,8.998e-05,2]
[394793480,1763955038323,-500.0,8.998e-05,2]
[394793481,1763955038332,-500.0,8.998e-05,2]
[394793482,1763955038341,-500.0,8.998e-05,2]
[394793483,1763955038350,-500.0,8.998e-05,2]
[394793484,1763955038359,-306.52081357,8.998e-05,2]
[394793485,1763955038368,-500.0,8.998e-05,2]
[394793486,1763955038378,-500.0,8.998e-05,2]
[394793487,1763955038388,-500.0,8.998e-05,2]
[394793488,1763955038397,-500.0,8.998e-05,2]
[394793489,1763955038406,-500.0,8.998e-05,2]
[394793490,1763955038416,-500.0,8.998e-05,2]
[394793491,1763955038425,-500.0,8.998e-05,2]
[394793492,1763955038434,-500.0,8.998e-05,2]
[394793493,1763955038443,-500.0,8.998e-05,2]
[394793494,1763955038453,-500.0,8.998e-05,2]
[394793495,1763955038463,-500.0,8.998e-05,2]
[394793496,1763955038472,-500.0,8.998e-05,2]
[394793497,1763955038481,-500.0,8.998e-05,2]
[394793498,1763955038490,-500.0,8.998e-05,2]
[394793499,1763955038499,-500.0,8.998e-05,2]
[394793500,1763955038508,-500.0,8.998e-05,2]
[394793501,1763955038518,-500.0,8.998e-05,2]
[394793502,1763955038527,-500.0,8.998e-05,2]
[394793503,1763955038537,-500.0,8.998e-05,2]
[394793504,1763955038547,-500.0,8.998e-05,2]
[394793505,1763955038556,-500.0,8.998e-05,2]
[394793506,1763955038566,-500.0,8.998e-05,2]
[394793507,1763955038576,-500.0,8.998e-05,2]
[394793508,1763955038586,-500.0,8.998e-05,2]
[394793509,1763955038596,-500.0,8.998e-05,2]
[394793510,1763955038606,-500.0,8.998e-05,2]
[394793511,1763955038616,-500.0,8.998e-05,2]
[394793512,1763955038626,-500.0,8.998e-05,2]
[394793513,1763955038636,-500.0,8.998e-05,2]
[394793514,1763955038647,-500.0,8.998e-05,2]
[394793515,1763955038657,-500.0,8.998e-05,2]
[394793516,1763955038667,-500.0,8.998e-05,2]
[394793517,1763955038678,-228.18941188,8.998e-05,2]
[394793518,1763955038689,-500.0,8.998e-05,2]
[394793519,1763955038699,-500.0,8.998e-05,2]
[394793520,1763955038708,-500.0,8.998e-05,2]
[394793521,1763955038718,-500.0,8.998e-05,2]
[394793522,1763955038728,-500.0,8.998e-05,2]
[394793523,1763955038739,-500.0,8.998e-05,2]
[394793524,1763955038749,-4197.50814798,8.998e-05,2]
[394793525,1763955038759,-4197.50814798,8.998e-05,2]
[394793526,1763955038768,-4197.50814798,8.998e-05,2]
[394793527,1763955038778,-4197.50814798,8.998e-05,2]
[394793528,1763955038787,-4197.50814798,8.998e-05,2]
[394793529,1763955038797,-4197.50814798,8.998e-05,2]
[394793530,1763955038807,-4197.50814798,8.998e-05,2]
[394793531,1763955038817,-4197.50814798,8.998e-05,2]
[394793532,1763955038828,-4197.50814798,8.998e-05,2]
[394793533,1763955038842,-4197.50814798,8.998e-05,2]
[394793534,1763955038852,-4197.50814798,8.998e-05,2]
[394793535,1763955038863,-4197.50814798,8.998e-05,2]